[Event "2026 Biel Blitz Open"]
[Site "Biel, CH"]
[Date "2026.07.19"]
[Round "3"]
[White "Habibi, Ali"]
[Black "Shukhman, Anna"]
[Result "0-1"]
[Board "11"]
[TimeControl "180+2"]
[WhiteFideId "4604393"]
[BlackFideId "54180058"]
[WhiteElo "2116"]
[BlackElo "2392"]
[WhiteTitle "IM"]
[BlackTitle "WGM"]
[WhiteClock "0:00:11"]
[BlackClock "0:00:14"]
[Variant "Standard"]
[EndDate "2026.07.19"]
[EndTime "12:28:57"]

1. Nf3 {[%clk 0:03:03]}  d5 {[%clk 0:03:03]} 2. g3 {[%clk 0:03:04]}  Bg4 {[%clk 0:03:04]} 3. Bg2 {[%clk 0:03:05]}  c6 {[%clk 0:03:04]}
4. O-O {[%clk 0:03:05]}  Nf6 {[%clk 0:03:05]} 5. d3 {[%clk 0:03:06]}  e6 {[%clk 0:03:06]} 6. Nbd2 {[%clk 0:03:07]}  Be7 {[%clk 0:03:06]}
7. Qe1 {[%clk 0:03:08]}  Bh5 {[%clk 0:03:04]} 8. e4 {[%clk 0:03:09]}  O-O {[%clk 0:03:05]} 9. h3 {[%clk 0:03:08]}  Nbd7 {[%clk 0:03:06]}
10. Nh2 {[%clk 0:02:57]}  Nc5 {[%clk 0:02:43]} 11. g4 {[%clk 0:02:36]}  Bg6 {[%clk 0:02:44]} 12. Kh1 {[%clk 0:02:23]}  dxe4 {[%clk 0:02:41]}
13. dxe4 {[%clk 0:02:23]}  e5 {[%clk 0:02:42]} 14. f3 {[%clk 0:02:17]}  Qc7 {[%clk 0:02:30]} 15. Qe2 {[%clk 0:02:18]}  Nfd7 {[%clk 0:02:24]}
16. Rd1 {[%clk 0:02:14]}  f6 {[%clk 0:02:24]} 17. Nhf1 {[%clk 0:02:13]}  Rad8 {[%clk 0:02:21]} 18. Ne3 {[%clk 0:02:13]}  Ne6 {[%clk 0:02:13]}
19. Nb3 {[%clk 0:02:04]}  Nf4 {[%clk 0:02:13]} 20. Qf1 {[%clk 0:02:05]}  Nc5 {[%clk 0:02:09]} 21. Bd2 {[%clk 0:01:58]}  Kh8 {[%clk 0:01:59]}
22. Nc4 {[%clk 0:01:45]}  Nce6 {[%clk 0:01:56]} 23. Be3 {[%clk 0:01:33]}  Bf7 {[%clk 0:01:43]} 24. Rxd8 {[%clk 0:01:20]}  Qxd8 {[%clk 0:01:28]}
25. Bxa7 {[%clk 0:01:15]}  b5 {[%clk 0:01:21]} 26. Ncd2 {[%clk 0:01:09]}  Bb4 {[%clk 0:00:28]} 27. c3 {[%clk 0:01:08]}  Bd6 {[%clk 0:00:29]}
28. Be3 {[%clk 0:01:07]}  Qe7 {[%clk 0:00:24]} 29. Rd1 {[%clk 0:01:02]}  Ra8 {[%clk 0:00:25]} 30. Nc1 {[%clk 0:01:03]}  Bc5 {[%clk 0:00:25]}
31. Bxc5 {[%clk 0:01:01]}  Qxc5 {[%clk 0:00:26]} 32. Ndb3 {[%clk 0:01:03]}  Qe7 {[%clk 0:00:26]} 33. Qf2 {[%clk 0:00:57]}  h5 {[%clk 0:00:26]}
34. Qd2 {[%clk 0:00:52]}  Rd8 {[%clk 0:00:24]} 35. Qc2 {[%clk 0:00:52]}  hxg4 {[%clk 0:00:18]} 36. Rxd8+ {[%clk 0:00:51]}  Qxd8 {[%clk 0:00:19]}
37. hxg4 {[%clk 0:00:51]}  f5 {[%clk 0:00:16]} 38. exf5 {[%clk 0:00:45]}  Qh4+ {[%clk 0:00:17]} 39. Kg1 {[%clk 0:00:46]}  Ng5 {[%clk 0:00:17]}
40. Qd2 {[%clk 0:00:25]}  Nfh3+ {[%clk 0:00:17]} 41. Bxh3 {[%clk 0:00:12]}  Nxh3+ {[%clk 0:00:16]} 42. Kg2 {[%clk 0:00:14]}  Nf4+ {[%clk 0:00:16]}
43. Kg1 {[%clk 0:00:13]}  Qg3+ {[%clk 0:00:13]} 44. Kh1 {[%clk 0:00:11]}  Qxf3+ {[%clk 0:00:14]} 45. Kg1 {[%clk 0:00:12]}  Bd5 {[%clk 0:00:14]}
46. Qh2+ {[%clk 0:00:11]}  Nh3+ {[%clk 0:00:14]} 0-1

[Event "2026 Biel Blitz Open"]
[Site "Biel, CH"]
[Date "2026.07.19"]
[Round "3"]
[White "Aryan Mehta"]
[Black "Tureshbayev, Anuar"]
[Result "0-1"]
[Board "12"]
[TimeControl "180+2"]
[WhiteFideId "33329664"]
[BlackFideId "651081709"]
[WhiteElo "2061"]
[BlackElo "2328"]
[BlackTitle "FM"]
[WhiteClock "0:00:05"]
[BlackClock "0:00:15"]
[Variant "Standard"]
[EndDate "2026.07.19"]
[EndTime "12:27:41"]

1. d4 {[%clk 0:03:03]}  Nf6 {[%clk 0:03:02]} 2. c4 {[%clk 0:03:04]}  e6 {[%clk 0:03:04]} 3. Nf3 {[%clk 0:03:05]}  d5 {[%clk 0:03:03]}
4. Nc3 {[%clk 0:03:06]}  h6 {[%clk 0:03:04]} 5. Bf4 {[%clk 0:03:06]}  Bd6 {[%clk 0:03:05]} 6. Bxd6 {[%clk 0:03:06]}  Qxd6 {[%clk 0:03:05]}
7. e3 {[%clk 0:03:07]}  a6 {[%clk 0:03:02]} 8. Rc1 {[%clk 0:03:02]}  O-O {[%clk 0:03:00]} 9. Bd3 {[%clk 0:03:00]}  dxc4 {[%clk 0:02:59]}
10. Bxc4 {[%clk 0:03:01]}  b5 {[%clk 0:03:00]} 11. Bd3 {[%clk 0:03:02]}  Bb7 {[%clk 0:03:01]} 12. O-O {[%clk 0:03:02]}  Nbd7 {[%clk 0:03:02]}
13. e4 {[%clk 0:02:55]}  e5 {[%clk 0:03:02]} 14. d5 {[%clk 0:02:48]}  Nc5 {[%clk 0:02:58]} 15. a3 {[%clk 0:02:33]}  Nxd3 {[%clk 0:02:51]}
16. Qxd3 {[%clk 0:02:34]}  c6 {[%clk 0:02:50]} 17. Rfd1 {[%clk 0:02:18]}  cxd5 {[%clk 0:02:43]} 18. exd5 {[%clk 0:02:13]}  Rac8 {[%clk 0:02:42]}
19. Qe3 {[%clk 0:01:46]}  Rfe8 {[%clk 0:02:39]} 20. Nh4 {[%clk 0:00:28]}  e4 {[%clk 0:02:04]} 21. Nf5 {[%clk 0:00:05]}  Qe5 {[%clk 0:02:04]}
22. Ng3 {[%clk 0:00:06]}  Nxd5 {[%clk 0:00:50]} 23. Qxe4 {[%clk 0:00:06]}  Qg5 {[%clk 0:00:15]} 24. Qd3 {[%clk 0:00:03]}  Nf4 {[%clk 0:00:15]}
25. Qf1 {[%clk 0:00:04]}  Bxg2 {[%clk 0:00:15]} 26. Nce4 {[%clk 0:00:04]}  Rxe4 {[%clk 0:00:14]} 27. Nxe4 {[%clk 0:00:05]}  Bxe4+ {[%clk 0:00:15]} 0-1

[Event "2026 Biel Blitz Open"]
[Site "Biel, CH"]
[Date "2026.07.19"]
[Round "3"]
[White "Mohammad Nubairshah Shaikh"]
[Black "Langner, Robin"]
[Result "1-0"]
[Board "13"]
[TimeControl "180+2"]
[WhiteFideId "5053196"]
[BlackFideId "34606190"]
[WhiteElo "2316"]
[BlackElo "2059"]
[WhiteTitle "IM"]
[WhiteClock "0:02:18"]
[BlackClock "0:00:41"]
[Variant "Standard"]
[EndDate "2026.07.19"]
[EndTime "12:24:33"]

1. Nf3 {[%clk 0:03:03]}  Nf6 {[%clk 0:03:03]} 2. g3 {[%clk 0:03:04]}  g6 {[%clk 0:03:04]} 3. b3 {[%clk 0:03:05]}  Bg7 {[%clk 0:03:03]}
4. Bb2 {[%clk 0:03:07]}  O-O {[%clk 0:03:04]} 5. Bg2 {[%clk 0:03:08]}  d5 {[%clk 0:03:02]} 6. c4 {[%clk 0:03:08]}  c5 {[%clk 0:02:59]}
7. cxd5 {[%clk 0:03:08]}  Nxd5 {[%clk 0:02:59]} 8. Bxg7 {[%clk 0:03:09]}  Kxg7 {[%clk 0:03:01]} 9. O-O {[%clk 0:03:09]}  Nc6 {[%clk 0:02:57]}
10. d4 {[%clk 0:03:10]}  Ndb4 {[%clk 0:02:05]} 11. a3 {[%clk 0:03:00]}  Na6 {[%clk 0:02:06]} 12. d5 {[%clk 0:02:50]}  Ncb8 {[%clk 0:02:03]}
13. Nc3 {[%clk 0:02:50]}  b6 {[%clk 0:01:43]} 14. e4 {[%clk 0:02:27]}  e6 {[%clk 0:01:36]} 15. Ne5 {[%clk 0:02:19]}  exd5 {[%clk 0:01:34]}
16. exd5 {[%clk 0:02:19]}  Bb7 {[%clk 0:01:34]} 17. Re1 {[%clk 0:02:18]}  Nd7 {[%clk 0:01:17]} 18. Nc6 {[%clk 0:02:19]}  Qf6 {[%clk 0:01:18]}
19. Ne4 {[%clk 0:02:17]}  Qf5 {[%clk 0:00:41]} 20. Nd6 {[%clk 0:02:18]} 1-0

[Event "2026 Biel Blitz Open"]
[Site "Biel, CH"]
[Date "2026.07.19"]
[Round "3"]
[White "Omar, Noaman"]
[Black "Stefan, Iulia-Cristiana"]
[Result "1-0"]
[Board "14"]
[TimeControl "180+2"]
[WhiteFideId "9300244"]
[BlackFideId "1273876"]
[WhiteElo "2274"]
[BlackElo "2050"]
[WhiteTitle "IM"]
[BlackTitle "WFM"]
[WhiteClock "0:00:08"]
[BlackClock "0:00:08"]
[Variant "Standard"]
[EndDate "2026.07.19"]
[EndTime "12:30:26"]

1. d4 {[%clk 0:03:03]}  d5 {[%clk 0:03:04]} 2. c4 {[%clk 0:03:04]}  e6 {[%clk 0:03:05]} 3. Nc3 {[%clk 0:03:04]}  Nf6 {[%clk 0:03:07]}
4. cxd5 {[%clk 0:03:04]}  exd5 {[%clk 0:03:08]} 5. Bg5 {[%clk 0:03:04]}  Be7 {[%clk 0:03:10]} 6. e3 {[%clk 0:03:05]}  h6 {[%clk 0:03:11]}
7. Bh4 {[%clk 0:02:53]}  Bg4 {[%clk 0:03:12]} 8. f3 {[%clk 0:02:52]}  Be6 {[%clk 0:03:09]} 9. Bd3 {[%clk 0:02:52]}  O-O {[%clk 0:03:04]}
10. Nge2 {[%clk 0:02:51]}  c5 {[%clk 0:02:56]} 11. Bf2 {[%clk 0:02:30]}  Nc6 {[%clk 0:02:55]} 12. O-O {[%clk 0:02:29]}  a6 {[%clk 0:02:55]}
13. Rc1 {[%clk 0:02:28]}  cxd4 {[%clk 0:02:48]} 14. exd4 {[%clk 0:02:28]}  Rc8 {[%clk 0:02:39]} 15. Bb1 {[%clk 0:02:14]}  Bd6 {[%clk 0:02:22]}
16. Re1 {[%clk 0:01:57]}  Ne7 {[%clk 0:02:13]} 17. Bg3 {[%clk 0:01:41]}  Bf5 {[%clk 0:01:58]} 18. Be5 {[%clk 0:01:25]}  Bxb1 {[%clk 0:01:52]}
19. Rxb1 {[%clk 0:01:25]}  Nh7 {[%clk 0:01:25]} 20. Nf4 {[%clk 0:01:12]}  Bb8 {[%clk 0:01:05]} 21. Bxb8 {[%clk 0:01:00]}  Rxb8 {[%clk 0:01:06]}
22. Re5 {[%clk 0:00:59]}  Nf6 {[%clk 0:00:29]} 23. Qd3 {[%clk 0:00:50]}  Nc6 {[%clk 0:00:28]} 24. Re2 {[%clk 0:00:50]}  Qd7 {[%clk 0:00:28]}
25. Rbe1 {[%clk 0:00:47]}  Rfe8 {[%clk 0:00:16]} 26. Kf2 {[%clk 0:00:34]}  Rxe2+ {[%clk 0:00:16]} 27. Rxe2 {[%clk 0:00:35]}  Kf8 {[%clk 0:00:06]}
28. h4 {[%clk 0:00:21]}  Re8 {[%clk 0:00:07]} 29. Rxe8+ {[%clk 0:00:21]}  Kxe8 {[%clk 0:00:09]} 30. g4 {[%clk 0:00:20]}  g6 {[%clk 0:00:07]}
31. a3 {[%clk 0:00:13]}  Ne7 {[%clk 0:00:06]} 32. Qe3 {[%clk 0:00:10]}  Kf8 {[%clk 0:00:07]} 33. Nfe2 {[%clk 0:00:09]}  Kg7 {[%clk 0:00:06]}
34. Nf4 {[%clk 0:00:08]}  Qd6 {[%clk 0:00:07]} 35. g5 {[%clk 0:00:08]}  hxg5 {[%clk 0:00:08]} 36. hxg5 {[%clk 0:00:09]}  Nh5 {[%clk 0:00:08]}
37. Nxh5+ {[%clk 0:00:08]}  gxh5 {[%clk 0:00:09]} 38. f4 {[%clk 0:00:09]}  Ng6 {[%clk 0:00:09]} 39. Kf3 {[%clk 0:00:08]}  Nh4+ {[%clk 0:00:10]}
40. Kf2 {[%clk 0:00:09]}  Ng6 {[%clk 0:00:11]} 41. Ne2 {[%clk 0:00:10]}  Qb6 {[%clk 0:00:08]} 42. f5 {[%clk 0:00:10]}  Nf8 {[%clk 0:00:05]}
43. Qe5+ {[%clk 0:00:11]}  Kg8 {[%clk 0:00:06]} 44. b4 {[%clk 0:00:10]}  Qc6 {[%clk 0:00:08]} 45. Qe7 {[%clk 0:00:09]}  Qc2 {[%clk 0:00:05]}
46. Qe5 {[%clk 0:00:09]}  Qc6 {[%clk 0:00:06]} 47. Nf4 {[%clk 0:00:08]}  Qc2+ {[%clk 0:00:08]} 1-0

[Event "2026 Biel Blitz Open"]
[Site "Biel, CH"]
[Date "2026.07.19"]
[Round "3"]
[White "Tkhoruk, Roman"]
[Black "Kukushkin, Ivan"]
[Result "0-1"]
[Board "15"]
[TimeControl "180+2"]
[WhiteFideId "34161589"]
[BlackFideId "11634103"]
[WhiteElo "2055"]
[BlackElo "2265"]
[BlackTitle "FM"]
[WhiteClock "0:00:05"]
[BlackClock "0:00:21"]
[Variant "Standard"]
[EndDate "2026.07.19"]
[EndTime "12:30:52"]

1. e4 {[%clk 0:03:03]}  c5 {[%clk 0:03:04]} 2. Nf3 {[%clk 0:03:04]}  Nc6 {[%clk 0:03:05]} 3. Bb5 {[%clk 0:03:04]}  Nf6 {[%clk 0:03:01]}
4. Bxc6 {[%clk 0:02:59]}  dxc6 {[%clk 0:03:01]} 5. d3 {[%clk 0:03:00]}  Qc7 {[%clk 0:03:02]} 6. O-O {[%clk 0:02:54]}  e5 {[%clk 0:03:03]}
7. a4 {[%clk 0:02:50]}  a5 {[%clk 0:02:58]} 8. h3 {[%clk 0:02:40]}  Be6 {[%clk 0:02:57]} 9. Nc3 {[%clk 0:02:40]}  h6 {[%clk 0:02:57]}
10. Nd2 {[%clk 0:01:47]}  Be7 {[%clk 0:02:52]} 11. Nc4 {[%clk 0:01:43]}  O-O-O {[%clk 0:01:50]} 12. Qe2 {[%clk 0:01:25]}  g5 {[%clk 0:01:16]}
13. Bd2 {[%clk 0:01:01]}  g4 {[%clk 0:00:35]} 14. h4 {[%clk 0:00:56]}  Nh5 {[%clk 0:00:22]} 15. g3 {[%clk 0:00:56]}  Bxc4 {[%clk 0:00:15]}
16. dxc4 {[%clk 0:00:55]}  Qd7 {[%clk 0:00:15]} 17. Be3 {[%clk 0:00:33]}  Ng7 {[%clk 0:00:11]} 18. Rad1 {[%clk 0:00:32]}  Qe6 {[%clk 0:00:12]}
19. b3 {[%clk 0:00:24]}  h5 {[%clk 0:00:13]} 20. Qe1 {[%clk 0:00:23]}  b6 {[%clk 0:00:14]} 21. Qe2 {[%clk 0:00:21]}  Qg6 {[%clk 0:00:14]}
22. Rxd8+ {[%clk 0:00:18]}  Rxd8 {[%clk 0:00:15]} 23. Rd1 {[%clk 0:00:19]}  Rxd1+ {[%clk 0:00:13]} 24. Qxd1 {[%clk 0:00:20]}  Ne6 {[%clk 0:00:14]}
25. Ne2 {[%clk 0:00:20]}  Nd4 {[%clk 0:00:15]} 26. Bxd4 {[%clk 0:00:13]}  cxd4 {[%clk 0:00:15]} 27. Nc1 {[%clk 0:00:13]}  Qxe4 {[%clk 0:00:16]}
28. Nd3 {[%clk 0:00:13]}  f6 {[%clk 0:00:16]} 29. Qd2 {[%clk 0:00:12]}  Kd7 {[%clk 0:00:16]} 30. Qh6 {[%clk 0:00:09]}  Qf5 {[%clk 0:00:15]}
31. Qg7 {[%clk 0:00:07]}  e4 {[%clk 0:00:14]} 32. Nf4 {[%clk 0:00:08]}  e3 {[%clk 0:00:15]} 33. Ng6 {[%clk 0:00:07]}  Qxf2+ {[%clk 0:00:15]}
34. Kh1 {[%clk 0:00:08]}  Qe1+ {[%clk 0:00:16]} 35. Kg2 {[%clk 0:00:08]}  Qd2+ {[%clk 0:00:16]} 36. Kg1 {[%clk 0:00:08]}  Qd1+ {[%clk 0:00:17]}
37. Kg2 {[%clk 0:00:08]}  Qxc2+ {[%clk 0:00:18]} 38. Kg1 {[%clk 0:00:08]}  Qe4 {[%clk 0:00:19]} 39. Nf8+ {[%clk 0:00:07]}  Kd6 {[%clk 0:00:21]}
40. Qf7 {[%clk 0:00:05]}  e2 {[%clk 0:00:21]} 0-1

[Event "2026 Biel Blitz Open"]
[Site "Biel, CH"]
[Date "2026.07.19"]
[Round "3"]
[White "Cao, Qingfeng"]
[Black "Haugner, Jan"]
[Result "1-0"]
[Board "16"]
[TimeControl "180+2"]
[WhiteFideId "8627568"]
[BlackFideId "24655244"]
[WhiteElo "2264"]
[BlackElo "1976"]
[WhiteTitle "IM"]
[WhiteClock "0:00:24"]
[BlackClock "0:00:02"]
[Variant "Standard"]
[EndDate "2026.07.19"]
[EndTime "12:28:07"]

1. d4 {[%clk 0:03:02]}  d5 {[%clk 0:03:04]} 2. c4 {[%clk 0:03:03]}  e6 {[%clk 0:03:04]} 3. Nf3 {[%clk 0:03:04]}  Nf6 {[%clk 0:03:05]}
4. g3 {[%clk 0:03:06]}  Bd6 {[%clk 0:03:05]} 5. Bg2 {[%clk 0:03:07]}  O-O {[%clk 0:03:05]} 6. O-O {[%clk 0:03:07]}  Nc6 {[%clk 0:03:06]}
7. b3 {[%clk 0:03:05]}  dxc4 {[%clk 0:03:07]} 8. bxc4 {[%clk 0:03:05]}  e5 {[%clk 0:03:08]} 9. Nc3 {[%clk 0:02:57]}  Nxd4 {[%clk 0:03:02]}
10. Nxd4 {[%clk 0:02:57]}  exd4 {[%clk 0:03:03]} 11. Qxd4 {[%clk 0:02:57]}  c6 {[%clk 0:03:01]} 12. Bb2 {[%clk 0:02:48]}  Be6 {[%clk 0:02:46]}
13. Rfd1 {[%clk 0:02:40]}  Be7 {[%clk 0:02:43]} 14. Qf4 {[%clk 0:02:07]}  Qb8 {[%clk 0:02:27]} 15. Qe3 {[%clk 0:01:57]}  Qc7 {[%clk 0:02:17]}
16. Rac1 {[%clk 0:01:53]}  Rfe8 {[%clk 0:02:00]} 17. Nd5 {[%clk 0:01:38]}  Qa5 {[%clk 0:00:36]} 18. Nxe7+ {[%clk 0:01:09]}  Rxe7 {[%clk 0:00:37]}
19. Bxf6 {[%clk 0:01:09]}  gxf6 {[%clk 0:00:38]} 20. Qf4 {[%clk 0:01:05]}  Qe5 {[%clk 0:00:29]} 21. a4 {[%clk 0:00:50]}  Qxf4 {[%clk 0:00:25]}
22. gxf4 {[%clk 0:00:51]}  Bg4 {[%clk 0:00:26]} 23. f3 {[%clk 0:00:44]}  Be6 {[%clk 0:00:24]} 24. e4 {[%clk 0:00:43]}  Rae8 {[%clk 0:00:16]}
25. f5 {[%clk 0:00:42]}  Bc8 {[%clk 0:00:17]} 26. c5 {[%clk 0:00:38]}  Kg7 {[%clk 0:00:11]} 27. Kf2 {[%clk 0:00:38]}  Kh6 {[%clk 0:00:12]}
28. Bf1 {[%clk 0:00:35]}  Rg8 {[%clk 0:00:10]} 29. Rd6 {[%clk 0:00:36]}  Kg5 {[%clk 0:00:06]} 30. Be2 {[%clk 0:00:33]}  Kf4 {[%clk 0:00:07]}
31. Rc4 {[%clk 0:00:31]}  Re5 {[%clk 0:00:06]} 32. Rxf6 {[%clk 0:00:31]}  Rd8 {[%clk 0:00:03]} 33. Rd6 {[%clk 0:00:25]}  Rxc5 {[%clk 0:00:02]}
34. Rxd8 {[%clk 0:00:24]} 1-0

[Event "2026 Biel Blitz Open"]
[Site "Biel, CH"]
[Date "2026.07.19"]
[Round "3"]
[White "Xu, Chang(CQ)"]
[Black "Gluckman, David"]
[Result "1-0"]
[Board "17"]
[TimeControl "180+2"]
[WhiteFideId "8641757"]
[BlackFideId "14300010"]
[WhiteElo "2049"]
[BlackElo "2240"]
[BlackTitle "IM"]
[WhiteClock "0:01:08"]
[BlackClock "0:01:18"]
[Variant "Standard"]
[EndDate "2026.07.19"]
[EndTime "12:26:38"]

1. e4 {[%clk 0:03:03]}  Nf6 {[%clk 0:03:03]} 2. e5 {[%clk 0:03:04]}  Nd5 {[%clk 0:03:04]} 3. d4 {[%clk 0:03:05]}  d6 {[%clk 0:03:05]}
4. c4 {[%clk 0:03:06]}  Nb6 {[%clk 0:03:07]} 5. f4 {[%clk 0:03:07]}  dxe5 {[%clk 0:03:04]} 6. fxe5 {[%clk 0:03:08]}  Nc6 {[%clk 0:03:05]}
7. Be3 {[%clk 0:03:09]}  Bf5 {[%clk 0:03:02]} 8. Nc3 {[%clk 0:03:09]}  e6 {[%clk 0:03:03]} 9. Nf3 {[%clk 0:03:10]}  Qd7 {[%clk 0:03:04]}
10. Be2 {[%clk 0:03:05]}  O-O-O {[%clk 0:03:03]} 11. O-O {[%clk 0:03:04]}  Kb8 {[%clk 0:02:44]} 12. h3 {[%clk 0:03:00]}  Bg6 {[%clk 0:02:18]}
13. Qd2 {[%clk 0:02:46]}  Bb4 {[%clk 0:02:11]} 14. a3 {[%clk 0:02:38]}  Bxc3 {[%clk 0:02:12]} 15. Qxc3 {[%clk 0:02:34]}  f6 {[%clk 0:02:10]}
16. b4 {[%clk 0:02:30]}  fxe5 {[%clk 0:02:09]} 17. dxe5 {[%clk 0:02:26]}  h6 {[%clk 0:01:55]} 18. a4 {[%clk 0:02:23]}  Bh5 {[%clk 0:01:40]}
19. a5 {[%clk 0:02:20]}  Nc8 {[%clk 0:01:41]} 20. b5 {[%clk 0:02:18]}  N6e7 {[%clk 0:01:38]} 21. b6 {[%clk 0:02:17]}  cxb6 {[%clk 0:01:33]}
22. axb6 {[%clk 0:02:18]}  a6 {[%clk 0:01:35]} 23. Rfd1 {[%clk 0:02:06]}  Qe8 {[%clk 0:01:33]} 24. Rxd8 {[%clk 0:01:36]}  Qxd8 {[%clk 0:01:34]}
25. Rd1 {[%clk 0:01:37]}  Qe8 {[%clk 0:01:32]} 26. Qd4 {[%clk 0:01:20]}  Nc6 {[%clk 0:01:29]} 27. Qc5 {[%clk 0:01:19]}  Qf8 {[%clk 0:01:23]}
28. Rd7 {[%clk 0:01:13]}  Qxc5 {[%clk 0:01:22]} 29. Bxc5 {[%clk 0:01:14]}  Bxf3 {[%clk 0:01:17]} 30. Bxf3 {[%clk 0:01:15]}  Nxe5 {[%clk 0:01:18]}
31. Rxb7+ {[%clk 0:01:08]} 1-0

[Event "2026 Biel Blitz Open"]
[Site "Biel, CH"]
[Date "2026.07.19"]
[Round "3"]
[White "Ling, Chenxuan"]
[Black "Coban, Ege"]
[Result "1-0"]
[Board "18"]
[TimeControl "180+2"]
[WhiteFideId "30983118"]
[BlackFideId "26320304"]
[WhiteElo "2235"]
[BlackElo "1936"]
[WhiteTitle "CM"]
[WhiteClock "0:00:09"]
[BlackClock "0:00:27"]
[Variant "Standard"]
[EndDate "2026.07.19"]
[EndTime "12:32:22"]

1. Nf3 {[%clk 0:03:03]}  c5 {[%clk 0:03:03]} 2. g3 {[%clk 0:03:04]}  g6 {[%clk 0:03:04]} 3. Bg2 {[%clk 0:03:05]}  Bg7 {[%clk 0:03:06]}
4. O-O {[%clk 0:03:05]}  Nc6 {[%clk 0:03:07]} 5. c4 {[%clk 0:03:06]}  Nh6 {[%clk 0:03:07]} 6. Nc3 {[%clk 0:03:06]}  Nf5 {[%clk 0:03:07]}
7. d3 {[%clk 0:03:04]}  O-O {[%clk 0:03:07]} 8. Bd2 {[%clk 0:03:04]}  e6 {[%clk 0:03:08]} 9. Rc1 {[%clk 0:02:49]}  b6 {[%clk 0:03:07]}
10. Re1 {[%clk 0:02:31]}  Bb7 {[%clk 0:03:05]} 11. a3 {[%clk 0:02:23]}  a5 {[%clk 0:02:54]} 12. e3 {[%clk 0:02:02]}  d5 {[%clk 0:02:46]}
13. cxd5 {[%clk 0:01:56]}  exd5 {[%clk 0:02:47]} 14. Qb3 {[%clk 0:01:56]}  d4 {[%clk 0:02:37]} 15. Na4 {[%clk 0:01:56]}  dxe3 {[%clk 0:02:26]}
16. fxe3 {[%clk 0:01:54]}  Rb8 {[%clk 0:01:56]} 17. Qxb6 {[%clk 0:01:53]}  Qxb6 {[%clk 0:01:49]} 18. Nxb6 {[%clk 0:01:52]}  Rfd8 {[%clk 0:01:49]}
19. g4 {[%clk 0:01:39]}  Nh6 {[%clk 0:01:36]} 20. g5 {[%clk 0:01:25]}  Nf5 {[%clk 0:01:34]} 21. Rxc5 {[%clk 0:01:26]}  Rxd3 {[%clk 0:01:26]}
22. Bc1 {[%clk 0:01:19]}  Nce7 {[%clk 0:01:17]} 23. Nc4 {[%clk 0:01:17]}  h5 {[%clk 0:01:02]} 24. Nxa5 {[%clk 0:01:13]}  Bxf3 {[%clk 0:00:59]}
25. Bxf3 {[%clk 0:01:13]}  Bxb2 {[%clk 0:00:54]} 26. Be4 {[%clk 0:00:51]}  Rc3 {[%clk 0:00:55]} 27. Rc4 {[%clk 0:00:21]}  Nd6 {[%clk 0:00:42]}
28. Bxb2 {[%clk 0:00:18]}  Rxc4 {[%clk 0:00:34]} 29. Nxc4 {[%clk 0:00:16]}  Nxc4 {[%clk 0:00:29]} 30. Bd4 {[%clk 0:00:20]}  Nd2 {[%clk 0:00:26]}
31. Bg2 {[%clk 0:00:18]}  Nf5 {[%clk 0:00:28]} 32. Be5 {[%clk 0:00:15]}  Re8 {[%clk 0:00:29]} 33. Bf4 {[%clk 0:00:12]}  Nc4 {[%clk 0:00:30]}
34. e4 {[%clk 0:00:14]}  Nd4 {[%clk 0:00:27]} 35. Kf2 {[%clk 0:00:12]}  Nxa3 {[%clk 0:00:27]} 36. Rd1 {[%clk 0:00:11]}  Ne6 {[%clk 0:00:27]}
37. Be3 {[%clk 0:00:12]}  Nc4 {[%clk 0:00:28]} 38. Bc1 {[%clk 0:00:12]}  Ra8 {[%clk 0:00:28]} 39. Bf1 {[%clk 0:00:07]}  Ra2+ {[%clk 0:00:29]}
40. Kg3 {[%clk 0:00:03]}  Ne5 {[%clk 0:00:28]} 41. h4 {[%clk 0:00:06]}  Rc2 {[%clk 0:00:28]} 42. Be3 {[%clk 0:00:06]}  Rc3 {[%clk 0:00:28]}
43. Re1 {[%clk 0:00:06]}  Ng4 {[%clk 0:00:29]} 44. Kf3 {[%clk 0:00:06]}  Nd4+ {[%clk 0:00:30]} 45. Kf4 {[%clk 0:00:07]}  Ne6+ {[%clk 0:00:32]}
46. Kf3 {[%clk 0:00:08]}  Nxe3 {[%clk 0:00:23]} 47. Rxe3 {[%clk 0:00:09]}  Rc1 {[%clk 0:00:25]} 48. Bh3 {[%clk 0:00:07]}  Nd4+ {[%clk 0:00:25]}
49. Kg2 {[%clk 0:00:08]}  Rc2+ {[%clk 0:00:26]} 50. Kg3 {[%clk 0:00:07]}  Rd2 {[%clk 0:00:24]} 51. Bg2 {[%clk 0:00:07]}  Nc2 {[%clk 0:00:25]}
52. Rc3 {[%clk 0:00:08]}  Ne1 {[%clk 0:00:26]} 53. Bf1 {[%clk 0:00:06]}  Nc2 {[%clk 0:00:23]} 54. Rc7 {[%clk 0:00:07]}  Ne3 {[%clk 0:00:22]}
55. Bb5 {[%clk 0:00:04]}  Ng4 {[%clk 0:00:21]} 56. Bc4 {[%clk 0:00:04]}  Ne5 {[%clk 0:00:22]} 57. Bd5 {[%clk 0:00:05]}  Rd3+ {[%clk 0:00:22]}
58. Kf4 {[%clk 0:00:06]}  Nf3 {[%clk 0:00:11]} 59. Bxf7+ {[%clk 0:00:07]}  Kf8 {[%clk 0:00:11]} 60. Bxg6 {[%clk 0:00:06]}  Nxh4 {[%clk 0:00:12]}
61. Bxh5 {[%clk 0:00:07]}  Ra3 {[%clk 0:00:11]} 62. Rc8+ {[%clk 0:00:07]}  Kg7 {[%clk 0:00:12]} 63. Rc7+ {[%clk 0:00:08]}  Kf8 {[%clk 0:00:14]}
64. Be2 {[%clk 0:00:08]}  Ra5 {[%clk 0:00:13]} 65. Bc4 {[%clk 0:00:07]}  Ng2+ {[%clk 0:00:14]} 66. Kg4 {[%clk 0:00:05]}  Ne3+ {[%clk 0:00:15]}
67. Kh5 {[%clk 0:00:06]}  Re5 {[%clk 0:00:13]} 68. Bd3 {[%clk 0:00:06]}  Ng2 {[%clk 0:00:13]} 69. Kh6 {[%clk 0:00:06]}  Nf4 {[%clk 0:00:12]}
70. Rc8+ {[%clk 0:00:06]}  Ke7 {[%clk 0:00:13]} 71. Bc2 {[%clk 0:00:03]}  Re6+ {[%clk 0:00:13]} 72. Kh7 {[%clk 0:00:04]}  Rg6 {[%clk 0:00:13]}
73. Rc7+ {[%clk 0:00:05]}  Kd6 {[%clk 0:00:14]} 74. Rf7 {[%clk 0:00:06]}  Rxg5 {[%clk 0:00:11]} 75. Rxf4 {[%clk 0:00:07]}  Rg2 {[%clk 0:00:13]}
76. Bd3 {[%clk 0:00:08]}  Ke5 {[%clk 0:00:14]} 77. Rf5+ {[%clk 0:00:09]}  Kd4 {[%clk 0:00:16]} 78. Bb1 {[%clk 0:00:09]}  Rb2 {[%clk 0:00:18]}
79. Rd5+ {[%clk 0:00:06]}  Ke3 {[%clk 0:00:18]} 80. Bd3 {[%clk 0:00:10]}  Rb7+ {[%clk 0:00:18]} 81. Kg6 {[%clk 0:00:11]}  Kf4 {[%clk 0:00:19]}
82. Bc2 {[%clk 0:00:05]}  Rc7 {[%clk 0:00:20]} 83. Bd3 {[%clk 0:00:06]}  Rb7 {[%clk 0:00:21]} 84. Kf6 {[%clk 0:00:07]}  Rb6+ {[%clk 0:00:22]}
85. Ke7 {[%clk 0:00:08]}  Rb7+ {[%clk 0:00:23]} 86. Ke6 {[%clk 0:00:09]}  Rb6+ {[%clk 0:00:24]} 87. Rd6 {[%clk 0:00:10]}  Rb2 {[%clk 0:00:25]}
88. e5 {[%clk 0:00:10]}  Ra2 {[%clk 0:00:25]} 89. Bc4 {[%clk 0:00:07]}  Ra5 {[%clk 0:00:26]} 90. Bd5 {[%clk 0:00:09]}  Kg5 {[%clk 0:00:27]} 1-0